[Event "EYCC Open-U14 2019"]
[Site "Bratislava"]
[Date "2019.08.10"]
[Round "9.19"]
[White "Bochnicka, Vladimir"]
[Black "Kristoferitsch, Daniel"]
[Result "1/2-1/2"]
[ECO "C54"]
[WhiteElo "2169"]
[BlackElo "2108"]
[Annotator "NA"]
[PlyCount "126"]
[EventDate "2019.08.02"]
[EventType "swiss"]
[EventCountry "SVK"]
[SourceTitle "playchess.com"]
[Source "ChessBase"]
[SourceQuality "1"]
[TimeControl "40/5400+30:1800+30"]

1. e4 {[%emt 0:00:00]} e5 {[%emt 0:00:00]} 2. Nf3 {[%emt 0:00:00]} Nc6 {[%emt 0:00:00]} 3. Bc4 {[%emt 0:00:00]} Bc5 {[%emt 0:00:00]} 4. c3 {[%emt 0:00:02]} Nf6 {[%emt 0:00:00]} 5. d3 {[%emt 0:00:06]} d6 {[%emt 0:00:09]} 6. Nbd2 {[%emt 0:00:10]} O-O {[%emt 0:00:07]} 7. O-O {[%emt 0:00:19]} a5 8. a4 {[%emt 0:00:48]} Be6 {[%emt 0:01:38]} 9. Bb3 {[%emt 0:00:40]} Bxb3 {[%emt 0:14:23]} 10. Qxb3 {[%emt 0:01:37]} Qb8 {[%emt 0:00:24]} 11. Nc4 {[%emt 0:01:58]} Qa7 {[%emt 0:05:34]} 12. Be3 {[%emt 0:06:51]} Bxe3 {[%emt 0:06:52]} 13. Nxe3 {[%emt 0:00:19]} Ne7 {[%emt 0:00:09]} 14. Nh4 {[%emt 0:05:05]} g6 {[%emt 0:02:52]} 15. Qd1 {[%emt 0:03:01]} Kg7 {[%emt 0:08:44]} 16. h3 {[%emt 0:03:50]} d5 {[%emt 0:03:18]} 17. Qf3 {[%emt 0:05:19]} dxe4 {[%emt 0:03:58]} 18. dxe4 {[%emt 0:00:07]} Qc5 {[%emt 0:00:59]} 19. Rad1 {[%emt 0:13:51]} Rad8 {[%emt 0:08:11]} 20. Ng4 {[%emt 0:02:21]} Nxg4 {[%emt 0:06:19]} 21. Qxg4 {[%emt 0:01:18]} Qc6 {[%emt 0:02:47]} 22. f4 {[%emt 0:13:29]} Rxd1 {[%emt 0:05:10]} 23. Rxd1 {[%emt 0:01:02]} Qxe4 {[%emt 0:00:26]} 24. Rd7 {[%emt 0:00:41]} Ng8 {[%emt 0:04:20]} 25. fxe5 {[%emt 0:02:01]} Qe1+ {[%emt 0:01:54]} 26. Kh2 {[%emt 0:00:06]} Qxe5+ {[%emt 0:00:07]} 27. Qg3 {[%emt 0:00:10]} Qxg3+ {[%emt 0:00:56]} 28. Kxg3 {[%emt 0:00:01]} Rc8 {[%emt 0:00:14]} 29. Nf3 {[%emt 0:03:17]} Nf6 {[%emt 0:06:14]} 30. Re7 {[%emt 0:00:31]} Ne8 {[%emt 0:04:25]} 31. Re5 {[%emt 0:07:35]} Ra8 {[%emt 0:04:35]} 32. Kf4 {[%emt 0:01:38]} Nd6 {[%emt 0:01:44]} 33. Rc5 {[%emt 0:06:39]} c6 {[%emt 0:02:33]} 34. Nd4 {[%emt 0:01:11]} Kf6 {[%emt 0:04:21]} 35. g4 {[%emt 0:03:16]} h6 {[%emt 0:00:10]} 36. h4 {[%emt 0:00:22]} Ke7 {[%emt 0:01:19]} 37. Nb3 {[%emt 0:01:16]} Kd7 {[%emt 0:00:59]} 38. Rxa5 {[%emt 0:01:47]} Rxa5 {[%emt 0:00:33]} 39. Nxa5 {[%emt 0:00:01]} b6 {[%emt 0:00:13]} 40. Nb3 {[%emt 0:00:00]} Nc4 {[%emt 0:00:00]} 41. a5 {[%emt 0:22:33]} bxa5 {[%emt 0:18:09]} 42. Nc5+ {[%emt 0:00:42]} Kd6 {[%emt 0:00:13]} 43. Ne4+ {[%emt 0:00:35]} Ke6 {[%emt 0:01:23]} 44. b3 {[%emt 0:00:56]} Nd6 {[%emt 0:03:24]} 45. Nc5+ {[%emt 0:03:26]} Kd5 {[%emt 0:00:51]} 46. Nd7 {[%emt 0:00:19]} f5 {[%emt 0:06:08]} 47. g5 {[%emt 0:08:56]} Ke6 {[%emt 0:04:05]} 48. Ne5 {[%emt 0:03:45]} hxg5+ {[%emt 0:00:03]} 49. hxg5 {[%emt 0:00:02]} Ne4 {[%emt 0:00:33]} 50. Nxc6 {[%emt 0:02:21]} Nxc3 {[%emt 0:00:04]} 51. Nxa5 {[%emt 0:00:02]} Nd5+ {[%emt 0:00:34]} 52. Kf3 {[%emt 0:00:19]} Nb4 {[%emt 0:00:57]} 53. Nc4 {[%emt 0:01:11]} Nd5 {[%emt 0:00:35]} 54. Kg3 {[%emt 0:04:57]} Nc7 {[%emt 0:00:48]} 55. Kf4 {[%emt 0:00:23]} Nd5+ {[%emt 0:01:08]} 56. Kf3 {[%emt 0:00:01]} Nc7 {[%emt 0:00:14]} 57. Ke3 {[%emt 0:00:43]} Kd5 {[%emt 0:00:21]} 58. Nd2 {[%emt 0:01:07]} Kc5 {[%emt 0:00:53]} 59. Nf3 {[%emt 0:01:37]} Ne6 {[%emt 0:00:23]} 60. Nh4 {[%emt 0:01:19]} Nxg5 {[%emt 0:00:19]} 61. Nxg6 {[%emt 0:00:09]} f4+ {[%emt 0:00:55]} 62. Nxf4 {[%emt 0:00:11]} Kb4 {[%emt 0:00:09]} 63. Ne2 {[%emt 0:00:09]} Kxb3 {[%emt 0:00:09] Ke4} 1/2-1/2

[Event "EYCC Open-U14 2019"]
[Site "Bratislava"]
[Date "2019.08.10"]
[Round "9.20"]
[White "Antal, Hunor-Zoltan"]
[Black "Fule, Simon"]
[Result "0-1"]
[ECO "C77"]
[WhiteElo "1980"]
[BlackElo "2184"]
[Annotator "NA"]
[PlyCount "90"]
[EventDate "2019.08.02"]
[EventType "swiss"]
[EventCountry "SVK"]
[SourceTitle "playchess.com"]
[Source "ChessBase"]
[SourceQuality "1"]
[TimeControl "40/5400+30:1800+30"]

1. e4 {[%emt 0:00:00]} e5 {[%emt 0:00:00]} 2. Nf3 {[%emt 0:00:00]} Nc6 {[%emt 0:00:00]} 3. Bb5 {[%emt 0:00:00]} a6 {[%emt 0:00:00]} 4. Ba4 {[%emt 0:00:00]} Nf6 {[%emt 0:00:00]} 5. d3 {[%emt 0:00:05]} d6 {[%emt 0:00:08]} 6. c4 {[%emt 0:00:20]} g6 {[%emt 0:02:56]} 7. Nc3 {[%emt 0:01:24]} Bg7 {[%emt 0:00:15]} 8. O-O {[%emt 0:00:36]} O-O {[%emt 0:00:31]} 9. h3 {[%emt 0:00:36]} h6 {[%emt 0:03:35]} 10. Be3 {[%emt 0:00:07]} Be6 {[%emt 0:00:18]} 11. Qe2 {[%emt 0:04:21]} Nd7 {[%emt 0:03:44]} 12. Bxc6 {[%emt 0:00:26]} bxc6 {[%emt 0:00:02]} 13. d4 {[%emt 0:00:31]} f5 {[%emt 0:04:38]} 14. d5 {[%emt 0:03:45]} cxd5 {[%emt 0:00:27]} 15. cxd5 {[%emt 0:00:23]} Bf7 {[%emt 0:00:40]} 16. Rfd1 {[%emt 0:20:58]} f4 {[%emt 0:03:33]} 17. Bd2 {[%emt 0:00:05]} g5 {[%emt 0:00:10]} 18. Ne1 {[%emt 0:08:24]} h5 {[%emt 0:04:46]} 19. Rac1 {[%emt 0:00:17]} Nf6 {[%emt 0:00:47]} 20. Qc4 {[%emt 0:03:14]} g4 {[%emt 0:03:51]} 21. hxg4 {[%emt 0:00:09]} hxg4 {[%emt 0:01:06]} 22. Ne2 {[%emt 0:02:00]} c5 {[%emt 0:07:50]} 23. b4 {[%emt 0:05:08]} Be8 {[%emt 0:04:04]} 24. Nc3 {[%emt 0:07:29]} cxb4 {[%emt 0:29:03]} 25. Qxb4 {[%emt 0:00:08]} Nh5 {[%emt 0:00:06]} 26. f3 {[%emt 0:15:46]} Rb8 {[%emt 0:05:15]} 27. Qc4 {[%emt 0:01:53]} Qb6+ {[%emt 0:10:01]} 28. Kh2 {[%emt 0:00:32]} g3+ {[%emt 0:08:37]} 29. Kh1 {[%emt 0:01:40]} Rf6 {[%emt 0:00:38]} 30. Rb1 {[%emt 0:01:30]} Bb5 {[%emt 0:00:12]} 31. Nxb5 {[%emt 0:00:39]} axb5 {[%emt 0:00:02]} 32. Qc6 {[%emt 0:03:56]} Qa7 {[%emt 0:00:05]} 33. Bc3 {[%emt 0:04:11]} Rh6 {[%emt 0:00:48]} 34. Bd4 {[%emt 0:00:06]} exd4 {[%emt 0:00:06]} 35. Nd3 {[%emt 0:00:06]} Qxa2 {[%emt 0:01:06]} 36. Rb2 {[%emt 0:00:25]} Qa8 {[%emt 0:02:59]} 37. Rxb5 {[%emt 0:00:56]} Rc8 {[%emt 0:00:08]} 38. Qb6 {[%emt 0:02:17]} Nf6+ {[%emt 0:03:10]} 39. Kg1 {[%emt 0:00:02]} Nd7 {[%emt 0:00:08]} 40. Qb7 {[%emt 0:00:00]} Qxb7 {[%emt 0:00:00]} 41. Rxb7 {[%emt 0:00:15]} Nc5 {[%emt 0:00:25]} 42. Rc1 {[%emt 0:00:32]} Ra8 {[%emt 0:00:34]} 43. Nxc5 {[%emt 0:00:23]} dxc5 {[%emt 0:00:01]} 44. Re7 {[%emt 0:00:59]} Kf8 {[%emt 0:01:49]} 45. Rc7 {[%emt 0:00:16]} d3 {[%emt 0:00:11]} 0-1

[Event "EYCC Open-U14 2019"]
[Site "Bratislava"]
[Date "2019.08.10"]
[Round "9.24"]
[White "Sahakyan, Aleks"]
[Black "Czernek, Tymon"]
[Result "0-1"]
[ECO "B30"]
[WhiteElo "1856"]
[BlackElo "2003"]
[Annotator "NA RC"]
[PlyCount "58"]
[EventDate "2019.08.02"]
[EventType "swiss"]
[EventCountry "SVK"]
[SourceTitle "playchess.com"]
[Source "ChessBase"]
[SourceQuality "1"]
[TimeControl "40/5400+30:1800+30"]

1. e4 {[%emt 0:00:00]} c5 {[%emt 0:00:00]} 2. Nf3 {[%emt 0:00:00]} Nc6 {[%emt 0:00:00]} 3. Bb5 {[%emt 0:00:00]} a6 {[%emt 0:02:01]} 4. Bxc6 {[%emt 0:00:00]} bxc6 {[%emt 0:00:04]} 5. O-O {[%emt 0:00:09]} d6 {[%emt 0:01:22]} 6. Re1 {[%emt 0:04:06]} e5 {[%emt 0:05:38]} 7. h3 {[%emt 0:02:47]} Be7 {[%emt 0:01:02]} 8. c3 {[%emt 0:00:24]} Bf6 {[%emt 0:07:28]} 9. d4 {[%emt 0:05:13]} cxd4 {[%emt 0:00:14]} 10. cxd4 {[%emt 0:00:13]} exd4 {[%emt 0:00:11]} 11. Nxd4 {[%emt 0:01:09]} Ne7 {[%emt 0:00:26]} 12. Nc3 {[%emt 0:00:41]} O-O {[%emt 0:01:00]} 13. Bf4 {[%emt 0:00:35]} Qb6 {[%emt 0:12:42]} 14. Nb3 {[%emt 0:02:34]} Be5 {[%emt 0:03:45]} 15. Bxe5 {[%emt 0:03:35]} dxe5 {[%emt 0:00:07]} 16. Qd6 {[%emt 0:00:02]} Ng6 {[%emt 0:00:20]} 17. Nd5 {[%emt 0:00:15]} Qb7 {[%emt 0:02:15]} 18. Nc5 {[%emt 0:02:20]} Qxb2 {[%emt 0:02:32]} 19. Rab1 {[%emt 0:04:48]} Qxa2 {[%emt 0:02:00]} 20. Nb6 {[%emt 0:01:36]} Ra7 {[%emt 0:02:49]} 21. Qxc6 {[%emt 0:10:34]} Be6 {[%emt 0:01:55]} 22. Nbd7 {[%emt 0:03:01]} Rd8 {[%emt 0:02:34]} 23. Red1 {[%emt 0:03:46]} Bxd7 {[%emt 0:04:19]} 24. Nxd7 {[%emt 0:00:51]} Raxd7 {[%emt 0:01:55]} 25. Qxd7 {[%emt 0:00:39]} Rxd7 {[%emt 0:00:09]} 26. Rb8+ {[%emt 0:00:04]} Nf8 {[%emt 0:00:05]} 27. Rxd7 {[%emt 0:00:04]} g6 {[%emt 0:00:47]} 28. Rdd8 {[%emt 0:00:04]} Qa1+ {[%emt 0:00:18]} 29. Kh2 {[%emt 0:00:02]} Qa3 {[%emt 0:00:05]} 0-1

[Event "EYCC Open-U14 2019"]
[Site "Bratislava"]
[Date "2019.08.10"]
[Round "9.31"]
[White "Poltorak, Sebastian"]
[Black "Nareks, Matic"]
[Result "1-0"]
[ECO "A41"]
[WhiteElo "2068"]
[BlackElo "1937"]
[Annotator "NA RC"]
[PlyCount "75"]
[EventDate "2019.08.02"]
[EventType "swiss"]
[EventCountry "SVK"]
[SourceTitle "playchess.com"]
[Source "ChessBase"]
[SourceQuality "1"]
[TimeControl "40/5400+30:1800+30"]

1. d4 {[%emt 0:00:00]} d6 {[%emt 0:00:00]} 2. c4 {[%emt 0:00:00]} e5 {[%emt 0:00:08]} 3. Nc3 {[%emt 0:00:00]} exd4 {[%emt 0:00:14]} 4. Qxd4 {[%emt 0:00:00]} Nc6 {[%emt 0:00:29]} 5. Qd2 {[%emt 0:00:00]} Nf6 {[%emt 0:01:00]} 6. b3 {[%emt 0:00:22]} a5 {[%emt 0:00:32]} 7. Bb2 {[%emt 0:00:20]} a4 {[%emt 0:00:21]} 8. Rd1 {[%emt 0:01:00]} axb3 {[%emt 0:00:21]} 9. axb3 {[%emt 0:00:07]} Be6 {[%emt 0:03:37]} 10. e4 {[%emt 0:01:05]} g6 {[%emt 0:08:47]} 11. g3 {[%emt 0:03:20]} Bg7 {[%emt 0:00:26]} 12. Bg2 {[%emt 0:01:14]} O-O {[%emt 0:01:12]} 13. Nge2 {[%emt 0:00:54]} Re8 {[%emt 0:02:54]} 14. O-O {[%emt 0:01:56]} Nd7 {[%emt 0:01:47]} 15. h3 {[%emt 0:09:09]} Nc5 {[%emt 0:01:37]} 16. Nc1 {[%emt 0:02:56]} f5 {[%emt 0:27:31]} 17. Rfe1 {[%emt 0:05:46]} Qd7 {[%emt 0:02:42]} 18. exf5 {[%emt 0:03:09]} Bxf5 {[%emt 0:00:40]} 19. g4 {[%emt 0:01:03]} Be6 {[%emt 0:01:36]} 20. Nd5 {[%emt 0:01:39]} Ne5 {[%emt 0:06:16]} 21. f4 {[%emt 0:02:42]} Nxb3 {[%emt 0:02:31]} 22. Qc3 {[%emt 0:10:43]} Nxc1 {[%emt 0:01:08]} 23. Rxc1 {[%emt 0:00:49]} Nf3+ {[%emt 0:00:45]} 24. Qxf3 {[%emt 0:00:52]} Bxb2 {[%emt 0:00:07]} 25. Rcd1 {[%emt 0:06:36]} Bg7 {[%emt 0:03:48]} 26. c5 {[%emt 0:09:59]} Kh8 {[%emt 0:09:03]} 27. cxd6 {[%emt 0:04:44]} Qxd6 {[%emt 0:00:19]} 28. Ne3 {[%emt 0:01:00]} Bd4 {[%emt 0:01:06]} 29. Kh1 {[%emt 0:05:55]} Ra3 {[%emt 0:11:30]} 30. Nc4 {[%emt 0:00:46]} Bxc4 {[%emt 0:01:31]} 31. Rxe8+ {[%emt 0:00:51]} Kg7 {[%emt 0:00:13]} 32. Qe4 c5 {[%emt 0:00:13]} 33. Qxb7+ {[%emt 0:03:55]} Bf7 {[%emt 0:00:14]} 34. Re7 {[%emt 0:02:08]} Qxf4 {[%emt 0:00:15]} 35. Rf1 {[%emt 0:00:40]} Bf2 {[%emt 0:00:45]} 36. Rxf7+ {[%emt 0:00:20]} Qxf7 {[%emt 0:00:11]} 37. Qb2+ {[%emt 0:00:04]} Qf6 {[%emt 0:00:50]} 38. Qxa3 {[%emt 0:00:05]} 1-0

[Event "EYCC Open-U14 2019"]
[Site "Bratislava"]
[Date "2019.08.10"]
[Round "9.33"]
[White "Shoshin, Kirill"]
[Black "Hulka, Valentyn"]
[Result "1/2-1/2"]
[ECO "E47"]
[WhiteElo "2089"]
[BlackElo "1788"]
[Annotator "NA RC"]
[PlyCount "170"]
[EventDate "2019.08.02"]
[EventType "swiss"]
[EventCountry "SVK"]
[SourceTitle "playchess.com"]
[Source "ChessBase"]
[SourceQuality "1"]
[TimeControl "40/5400+30:1800+30"]

1. d4 {[%emt 0:00:00]} Nf6 {[%emt 0:00:00]} 2. c4 {[%emt 0:00:00]} e6 {[%emt 0:00:00]} 3. Nc3 {[%emt 0:00:00]} Bb4 {[%emt 0:00:00]} 4. e3 {[%emt 0:00:59]} O-O {[%emt 0:00:18]} 5. Bd3 {[%emt 0:00:02]} b6 {[%emt 0:07:44]} 6. Nge2 {[%emt 0:00:03]} Bb7 {[%emt 0:00:07]} 7. O-O {[%emt 0:00:07]} d5 {[%emt 0:01:35]} 8. cxd5 {[%emt 0:00:25]} exd5 {[%emt 0:00:09]} 9. a3 {[%emt 0:00:03]} Bd6 {[%emt 0:07:25]} 10. b4 {[%emt 0:00:39]} Nbd7 {[%emt 0:08:27]} 11. f3 {[%emt 0:00:33]} Re8 {[%emt 0:00:52]} 12. Qc2 {[%emt 0:00:41]} c5 {[%emt 0:10:51]} 13. bxc5 {[%emt 0:04:16]} bxc5 {[%emt 0:00:06]} 14. Rb1 {[%emt 0:02:04]} Qc8 {[%emt 0:14:51]} 15. Nb5 {[%emt 0:03:19]} Bf8 {[%emt 0:02:34]} 16. g4 {[%emt 0:10:11]} a6 {[%emt 0:07:29]} 17. Nbc3 {[%emt 0:01:20]} h6 {[%emt 0:01:03]} 18. Ng3 {[%emt 0:01:39]} Qc7 {[%emt 0:03:26]} 19. Kg2 {[%emt 0:04:18]} Rac8 {[%emt 0:00:22]} 20. Bd2 {[%emt 0:00:01]} Nb8 {[%emt 0:21:30]} 21. h4 {[%emt 0:04:04]} Nc6 {[%emt 0:00:55]} 22. g5 {[%emt 0:02:55]} cxd4 {[%emt 0:00:11]} 23. exd4 {[%emt 0:02:11]} Nxd4 {[%emt 0:02:33]} 24. Qa4 {[%emt 0:00:31]} Nxf3 {[%emt 0:02:00]} 25. Rxf3 {[%emt 0:00:20]} d4 {[%emt 0:00:02]} 26. Rxb7 {[%emt 0:01:35]} Qxb7 {[%emt 0:00:20]} 27. gxf6 {[%emt 0:04:46]} dxc3 {[%emt 0:00:25]} 28. Bxh6 {[%emt 0:02:19]} c2 {[%emt 0:04:32]} 29. fxg7 {[%emt 0:00:32]} Bxg7 {[%emt 0:01:16]} 30. Qg4 {[%emt 0:02:41]} Qb2 {[%emt 0:00:17]} 31. Rf2 {[%emt 0:20:02]} c1=Q {[%emt 0:00:50]} 32. Bxc1 {[%emt 0:00:02]} Qxc1 {[%emt 0:00:19]} 33. Nf5 {[%emt 0:00:28]} Qc6+ {[%emt 0:00:22]} 34. Kh2 {[%emt 0:01:15]} Qf6 {[%emt 0:00:28]} 35. Rg2 {[%emt 0:00:18]} Qe5+ {[%emt 0:01:11]} 36. Kh3 {[%emt 0:00:01]} Rc3 {[%emt 0:00:13]} 37. Qxg7+ {[%emt 0:02:06]} Qxg7 {[%emt 0:00:06]} 38. Rxg7+ {[%emt 0:00:01]} Kf8 {[%emt 0:01:09]} 39. Rg3 {[%emt 0:00:16]} Rxa3 {[%emt 0:00:04]} 40. Kg4 {[%emt 0:00:00]} Rd8 {[%emt 0:00:00]} 41. Be4 {[%emt 0:06:08]} Rxg3+ {[%emt 0:03:05]} 42. Kxg3 {[%emt 0:00:37]} a5 {[%emt 0:00:52]} 43. h5 {[%emt 0:02:14]} a4 {[%emt 0:01:11]} 44. h6 {[%emt 0:00:05]} Kg8 {[%emt 0:04:55]} 45. Bb1 {[%emt 0:00:11]} a3 {[%emt 0:09:03]} 46. Ba2 {[%emt 0:00:48]} Rd2 {[%emt 0:01:24]} 47. h7+ {[%emt 0:00:18]} Kxh7 {[%emt 0:00:10]} 48. Bxf7 {[%emt 0:00:03]} a2 {[%emt 0:00:17]} 49. Bxa2 {[%emt 0:00:02]} Rxa2 {[%emt 0:00:07]} 50. Kf4 {[%emt 0:00:08]} Kg6 {[%emt 0:00:05]} 51. Ne7+ {[%emt 0:00:17]} Kf7 {[%emt 0:00:05]} 52. Nf5 {[%emt 0:00:10]} Kf6 {[%emt 0:00:03]} 53. Ke4 {[%emt 0:01:50]} Ra5 {[%emt 0:01:43]} 54. Nd4 {[%emt 0:00:35]} Re5+ {[%emt 0:00:05]} 55. Kf4 {[%emt 0:00:34]} Re1 {[%emt 0:00:17]} 56. Nf3 {[%emt 0:00:11]} Ra1 {[%emt 0:00:06]} 57. Ke4 {[%emt 0:00:10]} Ke6 {[%emt 0:00:04]} 58. Nd4+ {[%emt 0:00:06]} Kd6 {[%emt 0:00:05]} 59. Nf5+ {[%emt 0:00:06]} Kc5 {[%emt 0:00:07]} 60. Ne3 {[%emt 0:00:59]} Ra8 {[%emt 0:00:46]} 61. Kd3 {[%emt 0:00:47]} Rd8+ {[%emt 0:00:16]} 62. Ke4 {[%emt 0:00:15]} Re8+ {[%emt 0:00:14]} 63. Kd3 {[%emt 0:00:13]} Re5 {[%emt 0:00:21]} 64. Nc2 {[%emt 0:00:31]} Rh5 {[%emt 0:01:16]} 65. Ne3 {[%emt 0:00:10]} Rh4 {[%emt 0:00:04]} 66. Nc2 Rc4 {[%emt 0:00:23]} 67. Ne3 {[%emt 0:00:33]} Rd4+ {[%emt 0:01:13]} 68. Kc3 {[%emt 0:00:55]} Rd8 {[%emt 0:00:48]} 69. Nf5 {[%emt 0:00:24]} Kd5 {[%emt 0:02:50]} 70. Ne3+ {[%emt 0:00:46]} Ke4 {[%emt 0:00:11]} 71. Nc2 {[%emt 0:00:35]} Rc8+ {[%emt 0:00:26]} 72. Kd2 {[%emt 0:00:29]} Rc7 {[%emt 0:00:17]} 73. Nb4 {[%emt 0:00:40]} Rb7 {[%emt 0:02:07]} 74. Kc3 {[%emt 0:00:08]} Rb8 {[%emt 0:00:38]} 75. Nc2 {[%emt 0:00:10]} Rc8+ {[%emt 0:00:03]} 76. Kd2 {[%emt 0:00:06]} Rc4 {[%emt 0:00:20]} 77. Na3 {[%emt 0:01:07]} Rb4 {[%emt 0:00:28]} 78. Nc2 {[%emt 0:00:32]} Rb3 {[%emt 0:00:04]} 79. Ne1 {[%emt 0:00:12]} Ra3 {[%emt 0:01:52]} 80. Nc2 {[%emt 0:00:09]} Rd3+ {[%emt 0:00:14]} 81. Ke2 {[%emt 0:00:03]} Rd7 {[%emt 0:00:19]} 82. Ne1 {[%emt 0:00:28]} Rh7 {[%emt 0:00:16]} 83. Kd2 {[%emt 0:00:15]} Rh3 {[%emt 0:00:19]} 84. Nc2 {[%emt 0:00:09]} Rh2+ {[%emt 0:00:17]} 85. Kc3 {[%emt 0:00:05]} Rxc2+ {[%emt 0:00:05]} 1/2-1/2

[Event "EYCC Open-U14 2019"]
[Site "Bratislava"]
[Date "2019.08.10"]
[Round "9.34"]
[White "Dahl, Max"]
[Black "Dzida, Kamil"]
[Result "1/2-1/2"]
[ECO "A45"]
[WhiteElo "1981"]
[BlackElo "1987"]
[Annotator "NA RC"]
[PlyCount "82"]
[EventDate "2019.08.02"]
[EventType "swiss"]
[EventCountry "SVK"]
[SourceTitle "playchess.com"]
[Source "ChessBase"]
[SourceQuality "1"]
[TimeControl "40/5400+30:1800+30"]

1. d4 {[%emt 0:00:00]} Nf6 {[%emt 0:00:00]} 2. Bg5 {[%emt 0:00:00]} e6 {[%emt 0:00:00]} 3. e4 {[%emt 0:01:13]} h6 {[%emt 0:00:00]} 4. Bxf6 {[%emt 0:00:23]} Qxf6 {[%emt 0:00:01]} 5. Nf3 {[%emt 0:01:24]} d6 {[%emt 0:01:01]} 6. c3 {[%emt 0:02:19]} Nd7 {[%emt 0:00:17]} 7. Nbd2 {[%emt 0:01:25]} g6 {[%emt 0:01:01]} 8. Bc4 {[%emt 0:02:25]} Bg7 {[%emt 0:00:39]} 9. Qe2 {[%emt 0:02:03]} O-O {[%emt 0:00:09]} 10. O-O {[%emt 0:02:09]} Rd8 {[%emt 0:06:49]} 11. Rfe1 {[%emt 0:06:22]} e5 {[%emt 0:01:21]} 12. dxe5 {[%emt 0:06:13]} dxe5 {[%emt 0:00:05]} 13. Nf1 {[%emt 0:03:21]} Nc5 {[%emt 0:08:28]} 14. Rad1 {[%emt 0:21:25]} Bg4 {[%emt 0:05:17]} 15. Ne3 {[%emt 0:07:05]} Bxf3 {[%emt 0:00:06]} 16. Qxf3 {[%emt 0:00:35]} Qxf3 {[%emt 0:00:09]} 17. gxf3 {[%emt 0:00:30]} c6 {[%emt 0:06:16]} 18. Rxd8+ {[%emt 0:04:17]} Rxd8 {[%emt 0:00:05]} 19. Rd1 {[%emt 0:00:14]} Rxd1+ {[%emt 0:01:22]} 20. Nxd1 {[%emt 0:00:09]} Kf8 {[%emt 0:00:02]} 21. Kf1 {[%emt 0:01:52]} Ke7 {[%emt 0:00:09]} 22. b4 {[%emt 0:02:59]} Ne6 {[%emt 0:01:05]} 23. Bxe6 {[%emt 0:08:51]} Kxe6 {[%emt 0:00:07]} 24. Ne3 {[%emt 0:00:56]} Kd6 {[%emt 0:13:06]} 25. Ke2 {[%emt 0:05:42]} h5 {[%emt 0:01:50]} 26. Kd3 {[%emt 0:01:42]} Kc7 {[%emt 0:06:16]} 27. Nc4 {[%emt 0:03:31]} b5 {[%emt 0:03:03]} 28. Ne3 {[%emt 0:01:02]} Bf8 {[%emt 0:09:55]} 29. Kc2 {[%emt 0:04:07]} Be7 {[%emt 0:03:03]} 30. Ng2 {[%emt 0:05:03]} Kb6 {[%emt 0:12:27]} 31. Kb3 {[%emt 0:01:26]} c5 {[%emt 0:01:01]} 32. f4 {[%emt 0:03:10]} exf4 {[%emt 0:01:10]} 33. Nxf4 {[%emt 0:00:07]} Bd6 {[%emt 0:00:06]} 34. bxc5+ {[%emt 0:01:15]} Kxc5 {[%emt 0:02:57]} 35. Nd3+ {[%emt 0:00:10]} Kc6 {[%emt 0:00:21]} 36. h3 {[%emt 0:00:36]} Kd7 {[%emt 0:03:37]} 37. c4 {[%emt 0:00:38]} a6 {[%emt 0:00:43]} 38. cxb5 {[%emt 0:00:41]} axb5 {[%emt 0:00:04]} 39. Kc3 {[%emt 0:00:31]} g5 {[%emt 0:01:49]} 40. f3 {[%emt 0:00:00]} Ke6 {[%emt 0:00:00]} 41. Kd4 {[%emt 0:01:44]} f6 {[%emt 0:03:37]} 1/2-1/2

[Event "EYCC Open-U14 2019"]
[Site "Bratislava"]
[Date "2019.08.10"]
[Round "9.37"]
[White "Chlpek, Daniel"]
[Black "Ochedzan, Tymon"]
[Result "1/2-1/2"]
[ECO "E90"]
[WhiteElo "1912"]
[BlackElo "2037"]
[Annotator "NA RC"]
[PlyCount "66"]
[EventDate "2019.08.02"]
[EventType "swiss"]
[EventCountry "SVK"]
[SourceTitle "playchess.com"]
[Source "ChessBase"]
[SourceQuality "1"]
[TimeControl "40/5400+30:1800+30"]

1. d4 {[%emt 0:00:00]} Nf6 {[%emt 0:00:00]} 2. c4 {[%emt 0:00:00]} g6 {[%emt 0:00:00]} 3. Nc3 {[%emt 0:00:00]} Bg7 {[%emt 0:00:00]} 4. e4 {[%emt 0:00:05]} d6 {[%emt 0:00:56]} 5. Nf3 {[%emt 0:01:24]} O-O {[%emt 0:00:12]} 6. h3 {[%emt 0:00:08]} Na6 {[%emt 0:01:24]} 7. Be3 {[%emt 0:00:33]} e5 {[%emt 0:01:53]} 8. d5 {[%emt 0:00:13]} Nc5 {[%emt 0:02:06]} 9. Qc2 {[%emt 0:01:17]} a5 {[%emt 0:05:00]} 10. g4 {[%emt 0:00:38]} Ne8 {[%emt 0:04:56]} 11. Be2 {[%emt 0:07:41]} c6 {[%emt 0:03:30]} 12. O-O-O {[%emt 0:00:43]} Qe7 {[%emt 0:03:58]} 13. Nd2 {[%emt 0:12:44]} Nc7 {[%emt 0:03:11]} 14. Nb3 {[%emt 0:14:53]} cxd5 {[%emt 0:13:29]} 15. cxd5 {[%emt 0:01:24]} b6 {[%emt 0:02:30]} 16. Nxc5 {[%emt 0:09:30]} bxc5 {[%emt 0:00:10]} 17. h4 {[%emt 0:07:27]} Na6 {[%emt 0:03:27]} 18. a3 {[%emt 0:01:09]} Rb8 {[%emt 0:07:23]} 19. h5 {[%emt 0:03:03]} Qc7 {[%emt 0:05:27]} 20. Rh2 {[%emt 0:01:58]} c4 {[%emt 0:05:13]} 21. Rdh1 {[%emt 0:00:46]} Nc5 {[%emt 0:01:54]} 22. hxg6 {[%emt 0:01:04]} hxg6 {[%emt 0:00:47]} 23. Bxc5 {[%emt 0:01:41]} Qxc5 {[%emt 0:00:57]} 24. Qd2 {[%emt 0:00:09]} f6 {[%emt 0:03:30]} 25. Rh8+ {[%emt 0:06:21]} Kf7 {[%emt 0:05:46]} 26. Rxf8+ {[%emt 0:02:19]} Kxf8 {[%emt 0:00:36]} 27. Bd1 {[%emt 0:00:27]} Qd4 {[%emt 0:02:03]} 28. Qe2 {[%emt 0:05:55]} Bd7 {[%emt 0:02:14]} 29. Ba4 {[%emt 0:00:32]} Bxa4 {[%emt 0:02:49]} 30. Nxa4 {[%emt 0:00:30]} Rb3 {[%emt 0:01:08]} 31. Nc3 {[%emt 0:01:09]} Kg8 {[%emt 0:05:24]} 32. Rh3 {[%emt 0:03:31]} Rb8 {[%emt 0:01:39]} 33. a4 {[%emt 0:04:11]} Qc5 {[%emt 0:01:38]} 1/2-1/2

[Event "EYCC Open-U14 2019"]
[Site "Bratislava"]
[Date "2019.08.10"]
[Round "9.38"]
[White "Briem, Benedikt"]
[Black "Fardet, Elouan"]
[Result "1/2-1/2"]
[ECO "E73"]
[WhiteElo "1901"]
[BlackElo "2047"]
[Annotator "NA RC"]
[PlyCount "38"]
[EventDate "2019.08.02"]
[EventType "swiss"]
[EventCountry "SVK"]
[SourceTitle "playchess.com"]
[Source "ChessBase"]
[SourceQuality "1"]
[TimeControl "40/5400+30:1800+30"]

1. d4 {[%emt 0:00:00]} Nf6 {[%emt 0:00:00]} 2. c4 {[%emt 0:00:00]} g6 {[%emt 0:00:00]} 3. Nc3 {[%emt 0:00:00]} Bg7 {[%emt 0:00:00]} 4. e4 {[%emt 0:00:00]} d6 {[%emt 0:00:00]} 5. Be2 {[%emt 0:00:00]} O-O {[%emt 0:00:01]} 6. Be3 {[%emt 0:00:00]} c5 {[%emt 0:03:22]} 7. d5 {[%emt 0:01:04]} e6 {[%emt 0:01:21]} 8. Nf3 {[%emt 0:09:19]} Re8 {[%emt 0:02:09]} 9. Nd2 {[%emt 0:00:51]} exd5 {[%emt 0:06:55]} 10. cxd5 {[%emt 0:00:47]} Bd7 {[%emt 0:00:33]} 11. f3 {[%emt 0:00:53]} b5 {[%emt 0:04:24]} 12. Qc2 {[%emt 0:15:35]} b4 {[%emt 0:05:41]} 13. Nd1 {[%emt 0:00:18]} a5 {[%emt 0:10:33]} 14. Nc4 {[%emt 0:01:36]} Qc7 {[%emt 0:05:02]} 15. Bf4 {[%emt 0:06:26]} Bf8 {[%emt 0:00:29]} 16. g4 {[%emt 0:00:59]} Bc8 {[%emt 0:08:53]} 17. Nde3 {[%emt 0:08:19]} Nbd7 {[%emt 0:00:58]} 18. Rc1 {[%emt 0:06:13]} Ba6 {[%emt 0:02:15]} 19. Bg3 {[%emt 0:04:53]} Nb6 {[%emt 0:08:27]} 1/2-1/2